fUSD/lending_fUSD_20240606
["ID","MTS","AMOUNT","RATE_DAILY","PERIOD"]
[328633761,1717641263230,500.0,0.00033642,30]
[328633762,1717641263440,500.0,0.00033642,30]
[328633763,1717641263499,611.53302608,0.00033642,30]
[328633764,1717641263762,500.0,0.00033642,30]
[328633765,1717641264055,500.0,0.00033642,30]
[328633766,1717641264322,500.0,0.00033642,30]
[328633767,1717641264595,500.0,0.00033642,30]
[328633768,1717641265226,500.0,0.00033642,30]
[328633769,1717641265502,290.25,0.00033642,30]
[328633770,1717641268153,500.0,0.00033642,30]
[328633771,1717641268437,500.0,0.00033642,30]
[328633772,1717641269560,500.0,0.00033642,30]
[328633773,1717641279043,468.96477551,0.00033642,30]
[328633774,1717641280292,500.0,0.00033642,30]
[328633775,1717641280344,500.0,0.00033642,30]
[328633776,1717641280560,500.0,0.00033642,30]
[328633777,1717641280827,500.0,0.00033642,30]
[328633778,1717641280907,622.60068479,0.00033642,30]
[328633779,1717641281256,500.0,0.00033642,30]
[328633780,1717641281401,327.09,0.00033642,30]
[328633781,1717641293434,500.0,0.00033642,30]
[328633782,1717641293707,533.3834541,0.00033642,30]
[328633783,1717641294131,500.0,0.00033642,30]
[328633784,1717641294624,500.0,0.00033642,30]
[328633785,1717641294989,500.0,0.00033642,30]
[328633786,1717641295266,500.0,0.00033642,30]
[328633787,1717641315137,500.0,0.00033642,30]
[328633788,1717641315466,500.0,0.00033642,30]
[328633789,1717641315718,500.0,0.00033642,30]
[328633790,1717641315988,526.61532268,0.00033642,30]
[328633791,1717641325642,500.0,0.00033642,30]
[328633792,1717641325921,500.0,0.00033642,30]
[328633793,1717641326195,500.0,0.00033642,30]
[328633794,1717641326683,500.0,0.00033642,30]
[328633795,1717641327275,500.0,0.00033642,30]
[328633796,1717641327552,233.69344965,0.00033642,30]
[328633797,1717641400603,500.0,0.00033642,30]
[328633798,1717641400868,500.0,0.00033642,30]
[328633799,1717641401479,500.0,0.00033642,30]
[328633800,1717641401937,500.0,0.00033642,30]
[328633801,1717641402205,500.0,0.00033642,30]
[328633802,1717641402660,500.0,0.00033642,30]
[328633803,1717641402948,500.0,0.00033642,30]
[328633804,1717641403672,500.0,0.00033642,30]
[328633805,1717641403994,500.0,0.00033642,30]
[328633806,1717641404364,344.82302362,0.00033642,30]
[328633809,1717641432498,500.0,0.00033642,30]
[328633810,1717641432782,500.0,0.00033642,30]
[328633811,1717641433047,500.0,0.00033642,30]
[328633812,1717641433299,500.0,0.00033642,30]
[328633813,1717641433567,534.39714313,0.00033642,30]
[328633814,1717641433860,520.51500248,0.00033642,30]
[328633815,1717641500056,500.0,0.00033642,30]
[328633816,1717641500208,486.28044575,0.00033642,30]
[328633817,1717641502395,500.0,0.00033642,30]
[328633818,1717641518918,500.0,0.00033642,30]
[328633819,1717641519333,500.0,0.00033642,30]
[328633820,1717641539567,500.0,0.00033642,30]
[328633821,1717641539824,500.0,0.00033642,30]
[328633822,1717641540263,532.22648841,0.00033642,30]
[328633823,1717641549483,500.0,0.00033559,30]
[328633824,1717641549765,500.0,0.00033559,30]
[328633825,1717641550057,455.57533659,0.00033559,30]
[328633826,1717641628607,500.0,0.00033559,30]
[328633827,1717641628901,500.0,0.00033559,30]
[328633828,1717641629241,500.0,0.00033559,30]
[328633829,1717641629563,530.76430134,0.00033559,30]
[328633830,1717641644779,500.0,0.00033559,30]
[328633831,1717641645229,500.0,0.00033559,30]
[328633832,1717641645548,503.8891038,0.00033559,30]
[328633833,1717641733987,1710.73,0.00033559,30]
[328633834,1717641734300,1710.73,0.00033559,30]
[328633835,1717641734562,1710.73,0.00033559,30]
[328633836,1717641734866,1710.73,0.00033559,30]
[328633837,1717641735162,1710.73,0.00033559,30]
[328633838,1717641735797,1710.73,0.00033559,30]
[328633839,1717641736723,1710.73,0.00033559,30]
[328633840,1717641736773,1710.73,0.00033559,30]
[328633841,1717641736991,1710.73,0.00033559,30]
[328633842,1717641738752,1710.73,0.00033559,30]
[328633843,1717641738840,1710.73,0.00033559,30]
[328633844,1717641739096,1710.73,0.00033559,30]
[328633845,1717641739378,1710.73,0.00033559,30]
[328633846,1717641739663,1710.73,0.00033559,30]
[328633847,1717641739974,1710.73,0.00033559,30]
[328633848,1717641740248,1710.73,0.00033559,30]
[328633849,1717641740505,1710.73,0.00033559,30]
[328633850,1717641740769,1710.73,0.00033559,30]
[328633851,1717641741072,1710.73,0.00033559,30]
[328633852,1717641741344,1710.73,0.00033559,30]
[328633853,1717641741610,1710.73,0.00033559,30]
[328633854,1717641741915,1710.73,0.00033559,30]
[328633855,1717641742197,1710.73,0.00033559,30]
[328633856,1717641742486,1710.74836928,0.00033559,30]
[328633857,1717641844738,504.91045363,0.00033559,30]
[328633858,1717641869370,2000.0,0.00033559,30]
[328633863,1717641934916,284.03057943,0.00033559,30]
[328633864,1717641961662,171.7614113,0.00033559,30]
[328633869,1717642035165,-2193.12420193,0.000104,2]
[328633870,1717642035186,-715.17847291,0.000104,2]
[328633871,1717642035208,-3099.09729572,0.000104,2]
[328633872,1717642035229,-862.2779721,0.00010401,2]
[328633873,1717642035249,-411.04983464,0.00010401,2]
[328633874,1717642035271,-625.77511416,0.00010401,2]
[328633875,1717642035292,-155.0,0.00010402,2]
[328633876,1717642035315,-455.52152311,0.00010403,2]
[328633877,1717642038840,-150.00082006,0.00010399,2]
[328633878,1717642041175,-1392.12747405,0.00010399,2]
[328633880,1717642059512,193.24,0.00010006,2]
[328633881,1717642120750,4757.51990888,0.00010006,2]
[328633882,1717642135411,3473.95960161,0.00010006,2]
[328633889,1717642155114,-490.24581051,0.00010386,2]
[328633890,1717642155138,-1218.39220414,0.00010387,2]
[328633891,1717642155160,-166.51787557,0.00010388,2]
[328633892,1717642155183,-784.1,0.00010389,2]
[328633893,1717642155204,-150.0,0.00010398,2]
[328633894,1717642155224,-104.57671385,0.0001041,2]
[328633895,1717642156503,162.56528749,0.00021,30]
[328633896,1717642157107,-531.0306251,0.00010386,2]
[328633897,1717642157131,-583.7197452,0.0001041,2]
[328633898,1717642157152,-150.0,0.00010411,2]
[328633899,1717642157174,-8416.30367655,0.00010453,2]
[328633900,1717642157196,-162.84,0.00010454,2]
[328633901,1717642157217,-150.99,0.00010454,2]
[328633902,1717642157238,-185.03,0.00010454,2]
[328633903,1717642157259,-1614.00295315,0.00010454,2]
[328633904,1717642161101,-5399.16704685,0.00010454,2]
[328633905,1717642161125,-210.0,0.00011438,2]
[328633906,1717642161146,-499.99,0.00011484,2]
[328633907,1717642161168,-2886.96026496,0.00012183,2]
[328633908,1717642164274,-2236.4164,0.00012183,2]
[328633909,1717642172127,-1248.52290035,0.00010453,2]
[328633910,1717642172151,-6156.39333504,0.00012183,2]
[328633911,1717642172176,-162.84,0.00012197,2]
[328633912,1717642172200,-168.54,0.00012246,2]
[328633913,1717642172223,-659.16,0.00012344,2]
[328633914,1717642172245,-566.56,0.00012427,2]
[328633915,1717642172272,-1000.0,0.00012486,2]
[328633916,1717642172293,-193.24,0.00012507,2]
[328633917,1717642172316,-293.0,0.00012582,2]
[328633918,1717642172337,-164.36,0.00012589,2]
[328633919,1717642174087,-155.0,0.00012651,2]
[328633941,1717642232078,-560.17847291,0.00012651,2]
[328633942,1717642232087,-164.36,0.00012652,2]
[328633943,1717642232097,-784.1,0.00012653,2]
[328633944,1717642232106,-250.0,0.00012828,2]
[328633945,1717642232115,-250.0,0.00012828,2]
[328633946,1717642232124,-436.76,0.00012882,2]
[328633947,1717642232133,-325.82,0.00012882,2]
[328633948,1717642232143,-200.0,0.00012933,2]
[328633949,1717642232152,-553.76,0.00012988,2]
[328633950,1717642232161,-4519.45139699,0.00013068,2]
[328633951,1717642232173,-5322.20930375,0.00013068,2]
[328633952,1717642232184,-7052.66868269,0.00013068,2]
[328633953,1717642232312,-1534.66086946,0.00013068,2]
[328633954,1717642232324,-1379.02708379,0.00013068,2]
[328633955,1717642232543,-1094.50598929,0.00013068,2]
[328633956,1717642237885,-2997.47667403,0.00013068,2]
[328633957,1717642237895,-10337.57,0.00013091,2]
[328633958,1717642237905,-338.96,0.00013104,2]
[328633959,1717642237915,-338.96,0.0001314,2]
[328633960,1717642237925,-338.96,0.00013176,2]
[328633961,1717642237935,-338.96,0.00013212,2]
[328633962,1717642237945,-338.96,0.00013248,2]
[328633963,1717642237955,-338.96,0.00013284,2]
[328633964,1717642237965,-338.96,0.0001332,2]
[328633965,1717642237975,-338.96,0.00013356,2]
[328633966,1717642237987,-338.96,0.00013392,2]
[328633967,1717642237996,-338.96,0.00013428,2]
[328633968,1717642238006,-226.50367833,0.00013438,2]
[328633969,1717642238015,-299.99,0.00013438,2]
[328633970,1717642238025,-8771.93,0.00013438,2]
[328633971,1717642238035,-338.96,0.00013464,2]
[328633972,1717642238044,-338.96,0.000135,2]
[328633973,1717642238056,-338.96,0.00013536,2]
[328633974,1717642238065,-338.96,0.00013572,2]
[328633975,1717642238075,-338.96,0.00013608,2]
[328633976,1717642238084,-338.96,0.00013644,2]
[328633977,1717642238094,-338.96,0.00013679,2]
[328633978,1717642238103,-171.9,0.00013686,2]
[328633979,1717642238114,-1720.06,0.00013699,2]
[328633980,1717642238123,-200.0,0.00013699,2]
[328633981,1717642238133,-199.85,0.00013699,2]
[328633982,1717642238142,-2751.0,0.00013699,2]
[328633983,1717642238152,-338.96,0.00013715,2]
[328633984,1717642238161,-338.96,0.00013751,2]
[328633985,1717642238171,-338.96,0.00013787,2]
[328633986,1717642238180,-161.42524248,0.00013799,2]
[328633987,1717642238190,-293.0,0.0001384,2]
[328633988,1717642238199,-287.77940237,0.00013898,2]
[328633989,1717642238208,-167.61046203,0.00013898,2]
[328633990,1717642238218,-483.57239037,0.00013898,2]
[328633991,1717642238227,-469.15504323,0.00013898,2]
[328633992,1717642238237,-330.51683228,0.00013898,2]
[328633993,1717642238246,-3000.96077813,0.00013899,2]
[328633994,1717642238256,-3134.6279,0.000139,2]
[328633995,1717642238265,-18015.3607,0.000139,2]
[328633996,1717642238275,-381.8563,0.000139,2]
[328633997,1717642238284,-2733.80682493,0.000139,2]
[328633998,1717642238294,-324.17435205,0.000139,2]
[328633999,1717642238304,-339.65155485,0.000139,2]
[328634000,1717642238314,-153.42152152,0.000139,2]
[328634001,1717642238323,-193.33259223,0.000139,2]
[328634002,1717642238332,-252.87027778,0.000139,2]
[328634003,1717642238341,-162.84,0.00013939,2]
[328634004,1717642238350,-172.1,0.0001399,3]
[328634005,1717642238359,-516.3,0.0001399,3]
[328634006,1717642238368,-153.97,0.0001399,2]
[328634007,1717642238378,-153.97,0.0001399,2]
[328634008,1717642238388,-155.37423626,0.00013998,2]
[328634009,1717642238397,-155.40343483,0.00013998,2]
[328634010,1717642238407,-155.20518623,0.00013998,2]
[328634011,1717642238417,-1488.74285699,0.00013998,2]
[328634012,1717642238427,-163.00145255,0.00013998,2]
[328634013,1717642238436,-334.96945007,0.00013998,2]
[328634014,1717642238445,-314.09891412,0.00013998,2]
[328634015,1717642238455,-2334.89595111,0.00013998,2]
[328634016,1717642238464,-34.7428825,0.00013998,2]
[328634017,1717642239554,-471.58008141,0.00013998,2]
[328634018,1717642239565,-327.90106208,0.00013998,2]
[328634019,1717642239585,-481.6174682,0.00013998,2]
[328634020,1717642239596,-208.03390212,0.00013998,2]
[328634021,1717642239606,-346.17560194,0.00013998,2]
[328634022,1717642239617,-155.0,0.00013998,2]
[328634023,1717642239627,-217.47523029,0.00013998,2]
[328634024,1717642239636,-1280.75270979,0.00013998,2]
[328634025,1717642239646,-4231.764,0.00013998,2]
[328634026,1717642239656,-188.08785057,0.00013998,2]
[328634027,1717642239666,-155.0,0.00013998,2]
[328634028,1717642239676,-352.51586069,0.00013998,2]
[328634029,1717642239686,-410.37067847,0.00013998,2]
[328634030,1717642239696,-1618.85939652,0.00013998,2]
[328634031,1717642239705,-347.243264,0.00013998,2]
[328634032,1717642239716,-452.83396287,0.00013999,2]
[328634033,1717642239726,-777533.86898435,0.00014,2]
[328634034,1717642239739,-429.75149219,0.00014,2]
[328634035,1717642239875,-770.101539,0.00014,2]
[328634038,1717642239886,-653.55531824,0.00014,2]
[328634040,1717642239898,-414.0846342,0.00014,2]
[328634042,1717642239909,-41268.72495185,0.00014,2]
[328634044,1717642239922,-712.29463692,0.00014,2]
[328634045,1717642239933,-580.79166872,0.00014,2]
[328634046,1717642241028,-1000.98438,0.00014,2]
[328634047,1717642242421,-1480.59860364,0.00014,2]
[328634056,1717642245191,-1424963.27451738,0.00014,2]
[328634057,1717642245448,-1930.44243095,0.00014,2]
[328634066,1717642246210,-693.25963153,0.00014,2]
[328634074,1717642268436,3456.72,0.00033576,30]
[328634076,1717642268703,3456.72,0.00033576,30]
[328634077,1717642268986,3456.72,0.00033576,30]
[328634078,1717642269180,253.3967,0.00010297,2]
[328634079,1717642269291,3456.72,0.00033576,30]
[328634080,1717642269571,3456.72,0.00033576,30]
[328634081,1717642269924,3456.72,0.00033576,30]
[328634082,1717642270542,3456.72,0.00033576,30]
[328634083,1717642271804,3456.72,0.00033576,30]
[328634084,1717642272110,3456.72,0.00033576,30]
[328634085,1717642272534,3456.72,0.00033576,30]
[328634086,1717642272813,3456.72,0.00033576,30]
[328634087,1717642273090,3456.72,0.00033576,30]
[328634088,1717642273367,3456.72,0.00033576,30]
[328634089,1717642273676,3456.72,0.00033576,30]
[328634090,1717642273941,3456.72,0.00033576,30]
[328634091,1717642274213,3456.72,0.00033576,30]
[328634092,1717642274828,3456.72,0.00033576,30]
[328634093,1717642275116,3456.72,0.00033576,30]
[328634094,1717642275406,3456.72,0.00033576,30]
[328634095,1717642275673,3456.72,0.00033576,30]
[328634096,1717642275946,3456.72,0.00033576,30]
[328634097,1717642276230,3456.72,0.00033576,30]
[328634098,1717642276506,3456.72,0.00033576,30]
[328634099,1717642276839,3456.81614893,0.00033576,30]
[328634101,1717642305562,1126.797673,0.00012587,2]
[328634105,1717642414170,-344.2,0.00010959,2]
[328634106,1717642414192,-25989.6052,0.00012551,2]
[328634107,1717642414216,-3511.0464,0.00012551,2]
[328634108,1717642414239,-7538.65976902,0.00012644,2]
[328634109,1717642414265,-10532.44542063,0.00012644,2]
[328634110,1717642414286,-4289.12004358,0.00012645,2]
[328634111,1717642414308,-791.96732947,0.00012646,2]
[328634112,1717642414330,-2006.60849381,0.00012647,2]
[328634113,1717642414353,-94996.34734349,0.00012651,2]
[328634115,1717642495933,500.0,0.00033576,30]
[328634116,1717642496224,157.66858269,0.00033576,30]
[328634127,1717643180266,-155.0,0.00011513,2]
[328634128,1717643180293,-791.96732947,0.00011514,2]
[328634129,1717643180319,-162.84,0.00011525,2]
[328634130,1717643180344,-155.61762711,0.00012441,2]
[328634131,1717643180370,-943.94385815,0.00012541,2]
[328634132,1717643180559,-654.5863,0.00012551,2]
[328634133,1717643180587,-5136.04488527,0.00012551,2]
[328634135,1717643236164,-1171.71270523,0.000123,2]
[328634136,1717643245228,-1439.49277333,0.000123,2]
[328634137,1717643245252,-2796.94217845,0.00012551,2]
[328634138,1717643252119,-155.61850202,0.00012551,2]
[328634139,1717643283897,193.24,0.00010936,2]
[328634142,1717643319179,155.1453151,0.00010499,2]
[328634143,1717643320933,393.27188439,0.00033552,30]
[328634150,1717643357104,-1738.90491269,0.000123,2]
[328634151,1717643357149,-165973.41623426,0.00012551,2]
[328634152,1717643357170,-1000.0,0.00012551,2]
[328634153,1717643357191,-1000.0,0.00012551,2]
[328634154,1717643357213,-79277.62864612,0.00012651,2]
[328634155,1717643370080,-51460.05,0.00012651,2]
[328634162,1717643395646,1628.45,0.00033552,30]
[328634163,1717643396482,1628.45,0.00033552,30]
[328634164,1717643396623,1628.45,0.00033552,30]
[328634165,1717643397232,1628.45,0.00033552,30]
[328634166,1717643397518,1628.45,0.00033552,30]
[328634167,1717643397798,1628.45,0.00033552,30]
[328634168,1717643398093,1628.45,0.00033552,30]
[328634169,1717643398375,1628.45,0.00033552,30]
[328634170,1717643398677,1628.45,0.00033552,30]
[328634171,1717643398969,1628.45,0.00033552,30]
[328634173,1717643399251,1628.45,0.00033552,30]
[328634175,1717643399528,1628.45,0.00033552,30]
[328634176,1717643399784,1628.45,0.00033552,30]
[328634177,1717643400054,1628.45,0.00033552,30]
[328634178,1717643400325,1628.45,0.00033552,30]
[328634179,1717643400600,1628.45,0.00033552,30]
[328634180,1717643401088,1628.45,0.00033552,30]
[328634181,1717643401345,1628.45,0.00033552,30]
[328634182,1717643401644,1628.45,0.00033552,30]
[328634183,1717643401927,1628.45,0.00033552,30]
[328634184,1717643402229,1628.45,0.00033552,30]
[328634185,1717643402535,1628.45,0.00033552,30]
[328634186,1717643402817,1628.45,0.00033552,30]
[328634187,1717643403244,1628.48472557,0.00033552,30]
[328634188,1717643423063,832.66,0.00011909,2]
[328634194,1717643432444,-1933.2137905,0.00012651,2]
[328634195,1717643432455,-6791.96920149,0.00012651,2]
[328634196,1717643432492,-500.0,0.00012651,2]
[328634197,1717643432503,-1476.94465062,0.00012651,2]
[328634205,1717643433709,171.78,0.00033552,30]
[328634207,1717643438128,-558.0876504,0.00012651,2]
[328634210,1717643438518,-2532.81256834,0.00012651,2]
[328634211,1717643438530,-1728.72368233,0.00012651,2]
[328634212,1717643438579,-5382.66440145,0.00012651,2]
[328634213,1717643438594,-443.83778674,0.00012651,2]
[328634214,1717643438606,-1464.43317001,0.00012651,2]
[328634215,1717643438619,-62758.48245489,0.00012651,2]
[328634216,1717643438628,-2392.08097184,0.00013232,2]
[328634217,1717643438639,-250.0,0.00013362,2]
[328634218,1717643438653,-250.0,0.00013542,2]
[328634219,1717643438662,-23900.0,0.0001365,2]
[328634220,1717643438674,-200.0,0.00013699,2]
[328634221,1717643438684,-981.02,0.000137,2]
[328634222,1717643438694,-159.88,0.00013743,2]
[328634223,1717643438704,-150.99,0.00013777,2]
[328634224,1717643438714,-5179.89,0.00013777,2]
[328634225,1717643438724,-255.57,0.00013777,2]
[328634226,1717643438733,-324.17435205,0.00013792,2]
[328634227,1717643438743,-800.0,0.00013799,2]
[328634228,1717643438752,-3000.0,0.0001386,2]
[328634229,1717643438763,-288.3822897,0.00013897,2]
[328634230,1717643438772,-404.1822687,0.000139,2]
[328634231,1717643438781,-3750.5428,0.000139,2]
[328634232,1717643438791,-173.25656806,0.000139,2]
[328634233,1717643438801,-162.43358455,0.000139,2]
[328634234,1717643438810,-4022.39993686,0.000139,2]
[328634235,1717643438819,-368.89831562,0.000139,2]
[328634236,1717643438829,-502.92083352,0.000139,2]
[328634237,1717643438838,-193.33259223,0.000139,2]
[328634238,1717643438848,-382.13509686,0.00013965,2]
[328634239,1717643438858,-153.99,0.0001399,2]
[328634240,1717643438868,-155.00002669,0.00013998,2]
[328634241,1717643438877,-785.8451137,0.00013998,2]
[328634242,1717643438887,-525.03311929,0.00013998,2]
[328634243,1717643438896,-352.51586069,0.00013998,2]
[328634244,1717643438906,-208.03390212,0.00013998,2]
[328634245,1717643438916,-346.17560194,0.00013998,2]
[328634247,1717643438925,-452.83396287,0.00013998,2]
[328634249,1717643438935,-481.6174682,0.00013998,2]
[328634250,1717643438944,-1618.85939652,0.00013998,2]
[328634251,1717643438954,-1280.75270979,0.00013998,2]
[328634252,1717643438963,-327.90106208,0.00013998,2]
[328634253,1717643438972,-188.08785057,0.00013998,2]
[328634254,1717643438981,-155.0,0.00013998,2]
[328634255,1717643438991,-410.37067847,0.00013998,2]
[328634256,1717643439001,-217.47523029,0.00013998,2]
[328634257,1717643439010,-3382.05203748,0.00013998,2]
[328634258,1717643439019,-242.28123931,0.00013998,2]
[328634259,1717643439029,-7533.16457366,0.00013998,2]
[328634260,1717643439040,-2206.3563431,0.00013998,2]
[328634261,1717643439049,-3498.78885239,0.00013998,2]
[328634262,1717643439060,-1483.26172336,0.00013998,2]
[328634263,1717643439069,-6220.52,0.00013998,2]
[328634264,1717643439079,-499.99,0.00013998,2]
[328634265,1717643439089,-291.25612605,0.00013998,2]
[328634266,1717643439100,-155.0,0.00013998,2]
[328634267,1717643439111,-173.98365156,0.00013998,2]
[328634268,1717643439121,-347.243264,0.00013998,2]
[328634269,1717643439130,-180.5825281,0.00013998,2]
[328634270,1717643439140,-474.71588288,0.00013999,2]
[328634271,1717643439150,-3063.7356243,0.00013999,2]
[328634272,1717643439159,-640044.5040776,0.00014,2]
[328634273,1717643439437,-1e-08,0.00014,2]
[328634275,1717643442177,-967.42999998,0.00014,2]
[328634276,1717643442189,-2418.35420706,0.00014,2]
[328634277,1717643442529,-4867.42593509,0.00014,2]
[328634282,1717643444732,-906.17357973,0.00014,2]
[328634283,1717643444799,-0.00448442,0.00014,2]
[328634284,1717643445137,-47415.81294702,0.00014,2]
[328634285,1717643445149,-82672.68666198,0.00014,2]
[328634382,1717643453111,500.0,0.00033552,30]
[328634383,1717643453378,500.0,0.00033552,30]
[328634384,1717643453678,500.0,0.00033552,30]
[328634385,1717643453957,500.0,0.00033552,30]
[328634386,1717643454207,500.0,0.00033552,30]
[328634387,1717643454551,500.0,0.00033552,30]
[328634388,1717643454836,500.0,0.00033552,30]
[328634389,1717643455459,500.0,0.00033552,30]
[328634390,1717643455747,629.63644398,0.00033552,30]
[328634391,1717643459954,500.0,0.00033552,30]
[328634392,1717643460216,500.0,0.00033552,30]
[328634393,1717643460497,500.0,0.00033552,30]
[328634394,1717643460790,500.0,0.00033552,30]
[328634395,1717643461075,500.0,0.00033552,30]
[328634396,1717643461351,500.0,0.00033552,30]
[328634397,1717643461638,500.0,0.00033552,30]
[328634398,1717643461945,194.37072487,0.00033552,30]
[328634399,1717643520351,500.0,0.00033552,30]
[328634400,1717643520679,500.0,0.00033552,30]
[328634401,1717643520866,206.34779858,0.00033552,30]
[328634402,1717643522353,558.76513921,0.00012551,2]
[328634403,1717643522375,524.92306079,0.00012551,2]
[328634405,1717643642555,500.0,0.00033552,30]
[328634406,1717643642853,500.0,0.00033552,30]
[328634407,1717643643150,500.0,0.00033552,30]
[328634408,1717643643431,500.0,0.00033552,30]
[328634409,1717643644051,500.0,0.00033552,30]
[328634410,1717643644096,500.0,0.00033552,30]
[328634411,1717643644227,500.0,0.00033552,30]
[328634412,1717643644498,500.0,0.00033552,30]
[328634413,1717643644763,500.0,0.00033552,30]
[328634414,1717643645018,500.0,0.00033552,30]
[328634415,1717643645275,500.0,0.00033552,30]
[328634416,1717643645560,500.0,0.00033552,30]
[328634417,1717643645875,500.0,0.00033552,30]
[328634418,1717643646150,500.0,0.00033552,30]
[328634419,1717643646451,500.0,0.00033552,30]
[328634420,1717643647442,500.0,0.00033552,30]
[328634421,1717643647721,342.51019528,0.00033552,30]
[328634423,1717643764143,530.39826461,0.00033552,30]
[328634425,1717643781602,547.90404698,0.00033552,30]
[328634426,1717643816304,-155.0,0.0001254,2]
[328634427,1717643880551,500.0,0.00033552,30]
[328634428,1717643880831,500.0,0.00033552,30]
[328634429,1717643881118,161.49020278,0.00033552,30]
[328634430,1717643949039,999.999999,0.00033552,120]
[328634431,1717644031583,-253.20337282,0.00012533,2]
[328634432,1717644031604,-161.46550851,0.00012534,2]
[328634433,1717644031626,-474.71588288,0.00013298,2]
[328634434,1717644031646,-329.90705038,0.00013815,2]
[328634435,1717644031667,-10651.45123692,0.00013899,2]
[328634436,1717644031687,-455.0879,0.000139,2]
[328634437,1717644031893,-26519.0715,0.000139,2]
[328634438,1717644031913,-2093.07085036,0.000139,2]
[328634439,1717644031935,-219.6763,0.000139,2]
[328634440,1717644031955,-173.25656806,0.000139,2]
[328634441,1717644031976,-245.93221042,0.000139,2]
[328634442,1717644031999,-193.33259223,0.000139,2]
[328634443,1717644032022,-324.17435205,0.000139,2]
[328634444,1717644032045,-335.28055568,0.000139,2]
[328634445,1717644032068,-3099.09729572,0.00013998,2]
[328634446,1717644032089,-173.98365156,0.00013998,2]
[328634447,1717644032110,-3063.7356243,0.00013998,2]
[328634448,1717644032129,-155.0,0.00013998,2]
[328634449,1717644032153,-1483.26172336,0.00013998,2]
[328634450,1717644032173,-756.35596724,0.00013998,2]
[328634451,1717644032195,-2206.3563431,0.00013998,2]
[328634452,1717644032216,-242.28123931,0.00013998,2]
[328634453,1717644032236,-539.24902705,0.00013998,2]
[328634454,1717644032256,-7533.16457366,0.00013998,2]
[328634455,1717644032275,-347.243264,0.00013998,2]
[328634456,1717644032298,-155.2167102,0.00013998,2]
[328634457,1717644032322,-155.0,0.00013999,2]
[328634458,1717644032347,-285286.42870019,0.00014,2]
[328634464,1717644428146,-150.0,0.00013899,2]
[328634465,1717644428168,-3272.79168297,0.000139,2]
[328634466,1717644448093,-231.49620169,0.000139,2]
[328634467,1717644454350,-1871.29099559,0.000139,2]
[328634474,1717644583911,500.0,0.00033546,30]
[328634475,1717644584191,278.89037148,0.00033546,30]
[328634477,1717644632504,-1037.4444,0.00013799,2]
[328634478,1717644632513,-200.66614932,0.0001383,2]
[328634479,1717644632523,-378.96080802,0.000139,2]
[328634480,1717644632769,-1206.34779858,0.000139,2]
[328634481,1717644632781,-892.30034146,0.000139,2]
[328634498,1717644638545,-2000.0,0.000139,2]
[328634499,1717644638828,-82278.02375194,0.000139,2]
[328634500,1717644638838,-180.60886759,0.000139,2]
[328634501,1717644638848,-324.17435205,0.000139,2]
[328634502,1717644638857,-2417.64410478,0.00013998,2]
[328634503,1717644638867,-218.40915153,0.00013998,2]
[328634504,1717644638877,-176.38520029,0.00013998,2]
[328634505,1717644638887,-1501.58303576,0.00013998,2]
[328634506,1717644638896,-5289.28893931,0.00013999,2]
[328634507,1717644638906,-6019.974,0.00013999,2]
[328634508,1717644638915,-568009.29248306,0.00014,2]